[Event "8th Brazilian Open SESC Caioba 2024"]
[Site "Caioba"]
[Date "2024.06.30"]
[Round "9.7"]
[White "Hoffman, Alejandro"]
[Black "Rodriguez Vila, Andres"]
[Result "0-1"]
[ECO "A43"]
[WhiteElo "2355"]
[BlackElo "2396"]
[Annotator "RC"]
[PlyCount "81"]
[EventDate "2024.06.15"]
[EventCountry "BRA"]
[SourceTitle "playchess.com"]
[Source "ChessBase"]
[SourceQuality "1"]
[TimeControl "5400+30"]

1. Nf3 {[%emt 0:00:06]} g6 {[%emt 0:01:02]} 2. e4 {[%emt 0:02:13]} Bg7 {[%emt 0:00:37]} 3. d4 {[%emt 0:00:11]} d6 {[%emt 0:00:05]} 4. h3 {[%emt 0:02:17]} c5 {[%emt 0:01:54]} 5. d5 {[%emt 0:03:35]} Nf6 {[%emt 0:00:11]} 6. Nc3 {[%emt 0:00:08]} O-O {[%emt 0:00:05]} 7. a4 {[%emt 0:00:35]} e6 {[%emt 0:01:07]} 8. Be2 {[%emt 0:01:22]} exd5 {[%emt 0:01:27]} 9. exd5 {[%emt 0:00:08]} Na6 {[%emt 0:01:37]} 10. Nd2 {[%emt 0:10:28]} Nb4 {[%emt 0:00:39]} 11. Nc4 {[%emt 0:00:10]} Re8 {[%emt 0:02:57]} 12. O-O {[%emt 0:03:53]} Bf5 {[%emt 0:01:55]} 13. Ne3 {[%emt 0:01:40]} Rxe3 {[%emt 0:00:25]} 14. Bxe3 {[%emt 0:11:10]} Nxc2 {[%emt 0:01:15]} 15. g4 {[%emt 0:08:29]} Nxe3 {[%emt 0:00:05]} 16. fxe3 {[%emt 0:00:05]} Bd7 {[%emt 0:00:14]} 17. Qe1 {[%emt 0:12:09]} h5 {[%emt 0:02:26]} 18. Qg3 {[%emt 0:00:56]} hxg4 {[%emt 0:03:50]} 19. hxg4 {[%emt 0:00:08]} Qe7 {[%emt 0:03:18]} 20. Rf4 {[%emt 0:04:55]} Nh7 {[%emt 0:02:07]} 21. Raf1 {[%emt 0:02:34]} Ng5 {[%emt 0:08:50]} 22. Kg2 {[%emt 0:00:47]} Re8 {[%emt 0:00:11]} 23. Qh4 {[%emt 0:08:23]} Ne6 {[%emt 0:00:08]} 24. dxe6 {[%emt 0:00:50]} Qxh4 {[%emt 0:00:15]} 25. exf7+ {[%emt 0:00:09]} Kf8 {[%emt 0:00:13]} 26. fxe8=Q+ {[%emt 0:00:13]} Kxe8 {[%emt 0:00:02]} 27. Bb5 {[%emt 0:12:27]} Bxb5 {[%emt 0:05:24]} 28. Nxb5 {[%emt 0:09:47]} Be5 {[%emt 0:01:16]} 29. Rf8+ {[%emt 0:00:07]} Kd7 {[%emt 0:00:09]} 30. R1f7+ {[%emt 0:00:52]} Kc6 {[%emt 0:00:17]} 31. Nxa7+ {[%emt 0:01:21]} Kd5 {[%emt 0:00:39]} 32. Nb5 {[%emt 0:01:24]} Qxg4+ {[%emt 0:03:34]} 33. Kf2 {[%emt 0:00:20]} Qh4+ {[%emt 0:02:18]} 34. Ke2 {[%emt 0:00:35]} Qc4+ {[%emt 0:01:35]} 35. Kf2 {[%emt 0:00:45]} Qc2+ {[%emt 0:00:23]} 36. Kf3 {[%emt 0:00:26]} g5 {[%emt 0:01:26]} 37. Nc3+ {[%emt 0:02:15]} Ke6 {[%emt 0:02:58]} 38. Kg4 {[%emt 0:00:44]} Qg2+ {[%emt 0:05:57]} 39. Kh5 {[%emt 0:00:06]} g4 {[%emt 0:06:41]} 40. Nb5 {[%emt 0:01:12]} Kd5 {[%emt 0:00:18]} 41. Rf2 {[%emt 0:01:05]} 0-1

[Event "8th Brazilian Open SESC Caioba 2024"]
[Site "Caioba"]
[Date "2024.06.30"]
[Round "9.9"]
[White "Sunye Neto, Jaime"]
[Black "Amura, Claudia"]
[Result "0-1"]
[ECO "D34"]
[WhiteElo "2398"]
[BlackElo "2167"]
[Annotator "RC"]
[PlyCount "59"]
[EventDate "2024.06.15"]
[EventCountry "BRA"]
[SourceTitle "playchess.com"]
[Source "ChessBase"]
[SourceQuality "1"]
[TimeControl "5400+30"]

1. c4 {[%emt 0:00:04]} e6 {[%emt 0:00:12]} 2. Nf3 {[%emt 0:00:49]} d5 {[%emt 0:00:07]} 3. d4 {[%emt 0:00:39]} c5 {[%emt 0:00:48]} 4. cxd5 {[%emt 0:00:38]} exd5 {[%emt 0:00:05]} 5. g3 {[%emt 0:00:17]} Nc6 {[%emt 0:00:10]} 6. Bg2 {[%emt 0:00:09]} Nf6 {[%emt 0:00:12]} 7. O-O {[%emt 0:00:35]} Be7 {[%emt 0:02:32]} 8. Nc3 {[%emt 0:01:20]} O-O {[%emt 0:00:21]} 9. Bg5 {[%emt 0:04:42]} c4 {[%emt 0:02:33]} 10. Ne5 {[%emt 0:07:03]} Be6 {[%emt 0:01:00]} 11. e3 {[%emt 0:04:20]} h6 {[%emt 0:19:52]} 12. Bxf6 {[%emt 0:00:24]} Bxf6 {[%emt 0:00:04]} 13. f4 {[%emt 0:00:43]} g6 {[%emt 0:04:49]} 14. Qd2 {[%emt 0:13:47]} Rc8 {[%emt 0:12:28]} 15. Rad1 {[%emt 0:01:50]} Ne7 {[%emt 0:07:14]} 16. Kh1 {[%emt 0:07:10]} Bg7 {[%emt 0:01:14]} 17. e4 {[%emt 0:04:41]} a6 {[%emt 0:04:59]} 18. a4 {[%emt 0:04:17]} Qd6 {[%emt 0:03:12]} 19. exd5 {[%emt 0:03:10]} Bxd5 {[%emt 0:14:58]} 20. Nxd5 {[%emt 0:03:20]} Nxd5 {[%emt 0:00:04]} 21. f5 {[%emt 0:04:09]} g5 {[%emt 0:01:39]} 22. Ng4 {[%emt 0:01:33]} Nf6 {[%emt 0:04:43]} 23. Nxf6+ {[%emt 0:04:55]} Bxf6 {[%emt 0:02:07]} 24. Bxb7 {[%emt 0:00:45]} Rb8 {[%emt 0:00:04]} 25. Qg2 {[%emt 0:07:18]} Rfd8 {[%emt 0:02:18]} 26. Rf2 {[%emt 0:03:21]} Bxd4 {[%emt 0:01:51]} 27. Rfd2 {[%emt 0:03:01]} Qf6 {[%emt 0:03:32]} 28. Bxa6 {[%emt 0:08:21]} Qxa6 {[%emt 0:01:28]} 29. Rxd4 {[%emt 0:03:45]} Rxd4 {[%emt 0:00:07]} 30. Rxd4 {[%emt 0:00:06]} 0-1

[Event "8th Brazilian Open SESC Caioba 2024"]
[Site "Caioba"]
[Date "2024.06.30"]
[Round "9.10"]
[White "Duarte Napoles, Fanny"]
[Black "Acosta, Pablo Ismael"]
[Result "1/2-1/2"]
[ECO "C11"]
[WhiteElo "2202"]
[BlackElo "2449"]
[Annotator "TA"]
[PlyCount "27"]
[EventDate "2024.06.15"]
[EventCountry "BRA"]
[SourceTitle "playchess.com"]
[Source "ChessBase"]
[SourceQuality "1"]
[TimeControl "5400+30"]

{[%evp 16,27,6,4,35,28,55,54,50,45,46,50,54,-298]} 1. e4 {[%emt 0:00:30]} e6 {[%emt 0:00:10]} 2. d4 {[%emt 0:00:17]} d5 {[%emt 0:00:07]} 3. Nc3 {[%emt 0:00:12]} Nf6 {[%emt 0:00:27]} 4. e5 {[%emt 0:00:06]} Nfd7 {[%emt 0:00:15]} 5. f4 {[%emt 0:00:05]} c5 {[%emt 0:00:14]} 6. Nf3 {[%emt 0:00:06]} Nc6 {[%emt 0:00:30]} 7. Be3 {[%emt 0:00:02]} cxd4 {[%emt 0:01:32]} 8. Nxd4 {[%emt 0:00:06]} Bc5 {[%emt 0:00:13]} 9. Qd2 {[%emt 0:00:06]} Bxd4 {[%emt 0:03:04]} 10. Bxd4 {[%emt 0:00:03]} Qa5 {[%emt 0:00:15]} 11. Nb5 {[%emt 0:01:05] [#] Black must now prevent Qxa5. White is slightly better.} Qxd2+ {[%emt 0:00:27]} 12. Kxd2 {[%emt 0:00:01]} Nxd4 {[%emt 0:06:18]} 13. Nxd4 {[%emt 0:00:10]} a6 {[%emt 1:23:28] [#]} 14. Nb5 $2 {[%emt 0:02:00][%mdl 40960] White did not feel at home in the position after the opening.   Weighted Error Value: White=0.00 (flawless) /Black=0.13 (very precise) .  Loses game:     	White=1     	---        Inaccurate:     	---       	Black=1      OK:         	White=1     	Black=3     . An unexpected result.} 1/2-1/2

[Event "8th Brazilian Open SESC Caioba 2024"]
[Site "Caioba"]
[Date "2024.06.30"]
[Round "9.11"]
[White "Schnaider, Ilan"]
[Black "Piccoli, Lucas Fonseca"]
[Result "1-0"]
[ECO "B33"]
[WhiteElo "2395"]
[BlackElo "2242"]
[Annotator "RC"]
[PlyCount "113"]
[EventDate "2024.06.15"]
[EventCountry "BRA"]
[SourceTitle "playchess.com"]
[Source "ChessBase"]
[SourceQuality "1"]
[TimeControl "5400+30"]

1. e4 {[%emt 0:00:02]} c5 {[%emt 0:03:11]} 2. Nf3 {[%emt 0:00:08]} Nc6 {[%emt 0:00:08]} 3. d4 {[%emt 0:00:07]} cxd4 {[%emt 0:00:29]} 4. Nxd4 {[%emt 0:00:09]} Nf6 {[%emt 0:00:07]} 5. Nc3 {[%emt 0:00:05]} e5 {[%emt 0:00:13]} 6. Ndb5 {[%emt 0:00:06]} d6 {[%emt 0:00:06]} 7. Nd5 {[%emt 0:00:06]} Nxd5 {[%emt 0:00:06]} 8. exd5 {[%emt 0:00:04]} Nb8 {[%emt 0:00:08]} 9. Qf3 {[%emt 0:00:09]} a6 {[%emt 0:02:15]} 10. Qa3 {[%emt 0:00:27]} Be7 {[%emt 0:00:59]} 11. Bg5 {[%emt 0:00:10]} f6 {[%emt 0:00:27]} 12. Bd2 {[%emt 0:00:05]} O-O {[%emt 0:10:54]} 13. Bb4 {[%emt 0:00:47]} Qd7 {[%emt 0:02:36]} 14. Bd3 {[%emt 0:00:38]} b6 {[%emt 0:03:31]} 15. O-O {[%emt 0:00:28]} Rd8 {[%emt 0:09:46]} 16. Bd2 {[%emt 0:09:53]} Qb7 {[%emt 0:03:58]} 17. Nc3 {[%emt 0:01:07]} b5 {[%emt 0:06:39]} 18. Qb4 {[%emt 0:10:06]} f5 {[%emt 0:01:16]} 19. a4 {[%emt 0:02:28]} e4 {[%emt 0:01:55]} 20. Nxe4 {[%emt 0:30:07]} fxe4 {[%emt 0:00:57]} 21. Qxe4 {[%emt 0:00:05]} g6 {[%emt 0:00:44]} 22. axb5 {[%emt 0:00:23]} Bf6 {[%emt 0:01:34]} 23. Qf4 {[%emt 0:05:57]} Be5 {[%emt 0:07:51]} 24. Qh4 {[%emt 0:00:52]} Rf8 {[%emt 0:00:12]} 25. Bh6 {[%emt 0:01:40]} Re8 {[%emt 0:04:16]} 26. f4 {[%emt 0:05:46]} Bd4+ {[%emt 0:03:16]} 27. Kh1 {[%emt 0:00:26]} Qe7 {[%emt 0:11:08]} 28. Bg5 {[%emt 0:03:13]} Qg7 {[%emt 0:01:40]} 29. c3 {[%emt 0:02:03]} h6 {[%emt 0:01:38]} 30. Bxh6 {[%emt 0:07:36]} Bf6 {[%emt 0:00:05]} 31. Bg5 {[%emt 0:00:06]} Nd7 {[%emt 0:00:35]} 32. bxa6 {[%emt 0:05:18]} Rf8 {[%emt 0:02:48]} 33. Bxf6 {[%emt 0:03:10]} Nxf6 {[%emt 0:01:02]} 34. Qg5 {[%emt 0:00:32]} Kf7 {[%emt 0:00:23]} 35. a7 {[%emt 0:02:46]} Rh8 {[%emt 0:00:18]} 36. Rfe1 {[%emt 0:01:28]} Rh6 {[%emt 0:01:29]} 37. f5 {[%emt 0:01:21]} Kg8 {[%emt 0:00:20]} 38. fxg6 {[%emt 0:01:37]} Bd7 {[%emt 0:00:24]} 39. Rf1 {[%emt 0:01:56]} Ng4 {[%emt 0:01:24]} 40. Rf7 {[%emt 0:01:55]} Qe5 {[%emt 0:00:39]} 41. Qxe5 {[%emt 0:00:37]} Nxe5 {[%emt 0:00:10]} 42. Bb5 {[%emt 0:02:34]} Rxg6 {[%emt 0:02:50]} 43. Rxd7 {[%emt 0:00:43]} Nxd7 {[%emt 0:00:01]} 44. Bc6 {[%emt 0:00:42]} Nb6 {[%emt 0:00:48]} 45. Bxa8 {[%emt 0:00:03]} Nxa8 {[%emt 0:00:07]} 46. Ra6 {[%emt 0:00:28]} Rf6 {[%emt 0:03:14]} 47. h4 {[%emt 0:00:22]} Kf7 {[%emt 0:05:32]} 48. Rc6 {[%emt 0:00:32]} Rf1+ {[%emt 0:00:04]} 49. Kh2 {[%emt 0:00:03]} Ra1 {[%emt 0:00:07]} 50. Rxd6 {[%emt 0:00:12]} Rxa7 {[%emt 0:11:10]} 51. c4 {[%emt 0:04:22]} Rb7 {[%emt 0:00:30]} 52. Rd8 {[%emt 0:00:30]} Nc7 {[%emt 0:00:30]} 53. Rd7+ {[%emt 0:00:00]} Ke8 {[%emt 0:00:00]} 54. Rh7 {[%emt 0:01:00]} Ra7 {[%emt 0:00:00]} 55. d6 {[%emt 0:00:00]} Nb5 {[%emt 0:00:00]} 56. Rh8+ {[%emt 0:00:00]} Kd7 {[%emt 0:00:00]} 57. cxb5 {[%emt 0:01:30]} 1-0

[Event "8th Brazilian Open SESC Caioba 2024"]
[Site "Caioba"]
[Date "2024.06.30"]
[Round "9.12"]
[White "Luz, Arthur Nader"]
[Black "Perdomo, Leandro"]
[Result "0-1"]
[ECO "A48"]
[WhiteElo "2172"]
[BlackElo "2391"]
[Annotator "RC"]
[PlyCount "62"]
[EventDate "2024.06.15"]
[EventCountry "BRA"]
[SourceTitle "playchess.com"]
[Source "ChessBase"]
[SourceQuality "1"]
[TimeControl "5400+30"]

1. d4 {[%emt 0:08:02]} Nf6 {[%emt 0:00:01]} 2. Nf3 {[%emt 0:00:06]} g6 {[%emt 0:00:02]} 3. h4 {[%emt 0:00:05]} h5 {[%emt 0:01:46]} 4. c4 {[%emt 0:00:07]} Bg7 {[%emt 0:00:50]} 5. Nc3 {[%emt 0:00:06]} O-O {[%emt 0:00:17]} 6. e4 {[%emt 0:00:04]} d6 {[%emt 0:00:02]} 7. Be2 {[%emt 0:00:05]} Bg4 {[%emt 0:01:17]} 8. Bg5 {[%emt 0:08:01]} Nfd7 {[%emt 0:15:58]} 9. Qd2 {[%emt 0:08:20]} Nc6 {[%emt 0:02:11]} 10. Be3 {[%emt 0:23:48]} Bxf3 {[%emt 0:21:33]} 11. Bxf3 {[%emt 0:03:33]} e5 {[%emt 0:00:05]} 12. d5 {[%emt 0:00:03]} Nd4 {[%emt 0:00:05]} 13. Ne2 {[%emt 0:00:07]} f5 {[%emt 0:26:45]} 14. exf5 {[%emt 0:15:48]} Nxf5 {[%emt 0:03:11]} 15. Bg5 {[%emt 0:02:20]} Qe8 {[%emt 0:01:29]} 16. Be4 {[%emt 0:00:06]} Nc5 {[%emt 0:01:50]} 17. Nc3 {[%emt 0:00:05]} Nd4 {[%emt 0:08:59]} 18. O-O {[%emt 0:06:20]} b5 {[%emt 0:00:20]} 19. b3 {[%emt 0:09:05]} b4 {[%emt 0:00:25]} 20. Bxg6 {[%emt 0:05:25]} Qxg6 {[%emt 0:00:10]} 21. Nb5 {[%emt 0:00:05]} Ne4 {[%emt 0:06:37]} 22. Qd3 {[%emt 0:01:05]} Nxb5 {[%emt 0:00:02]} 23. cxb5 {[%emt 0:01:06]} Qf5 {[%emt 0:00:02]} 24. Be3 {[%emt 0:02:45]} Nc3 {[%emt 0:00:57]} 25. Qc4 {[%emt 0:01:56]} Qg4 {[%emt 0:00:19]} 26. Qxg4 {[%emt 0:02:18]} hxg4 {[%emt 0:00:02]} 27. Rfe1 {[%emt 0:00:06]} Nxd5 {[%emt 0:01:06]} 28. Bd2 {[%emt 0:00:10]} e4 {[%emt 0:02:47]} 29. Rac1 {[%emt 0:00:10]} Bc3 {[%emt 0:00:13]} 30. Bxc3 {[%emt 0:00:22]} Nxc3 {[%emt 0:00:08]} 31. a3 {[%emt 0:00:01]} d5 {[%emt 0:00:43]} 0-1

[Event "8th Brazilian Open SESC Caioba 2024"]
[Site "Caioba"]
[Date "2024.06.30"]
[Round "9.13"]
[White "Cori T., Deysi"]
[Black "Bueno, Alfeu Junior Varela"]
[Result "0-1"]
[ECO "A04"]
[WhiteElo "2389"]
[BlackElo "2140"]
[Annotator "RC"]
[PlyCount "44"]
[EventDate "2024.06.15"]
[EventCountry "BRA"]
[SourceTitle "playchess.com"]
[Source "ChessBase"]
[SourceQuality "1"]
[TimeControl "5400+30"]

1. Nf3 {[%emt 0:00:24]} e6 {[%emt 0:07:40]} 2. g3 {[%emt 0:01:59]} b6 {[%emt 0:00:27]} 3. Bg2 {[%emt 0:04:06]} Bb7 {[%emt 0:00:22]} 4. O-O {[%emt 0:00:19]} f5 {[%emt 0:02:35]} 5. d3 {[%emt 0:01:01]} Nf6 {[%emt 0:00:27]} 6. e4 {[%emt 0:00:31]} fxe4 {[%emt 0:02:09]} 7. Ng5 {[%emt 0:01:02]} Be7 {[%emt 0:04:17]} 8. Nc3 {[%emt 0:06:15]} O-O {[%emt 0:02:26]} 9. h4 {[%emt 0:06:38]} Qe8 {[%emt 0:12:44]} 10. Ncxe4 {[%emt 0:30:19]} Nxe4 {[%emt 0:08:02]} 11. Nxe4 {[%emt 0:02:32]} Nc6 {[%emt 0:01:50]} 12. h5 {[%emt 0:00:58]} d5 {[%emt 0:16:58]} 13. Nc3 {[%emt 0:04:39]} Bc5 {[%emt 0:03:36]} 14. Bf4 {[%emt 0:05:22]} Qf7 {[%emt 0:03:43]} 15. Qg4 {[%emt 0:07:42]} Rad8 {[%emt 0:08:59]} 16. Rae1 {[%emt 0:07:18]} Bc8 {[%emt 0:02:33]} 17. h6 {[%emt 0:01:48]} g6 {[%emt 0:02:38]} 18. Be3 {[%emt 0:01:47]} e5 {[%emt 0:07:29]} 19. Qa4 {[%emt 0:01:23]} Nd4 {[%emt 0:01:36]} 20. b4 {[%emt 0:09:40]} Nf3+ {[%emt 0:01:49]} 21. Bxf3 {[%emt 0:04:29]} Qxf3 {[%emt 0:00:04]} 22. Nxd5 {[%emt 0:00:46]} Be7 {[%emt 0:09:06]} 0-1

[Event "8th Brazilian Open SESC Caioba 2024"]
[Site "Caioba"]
[Date "2024.06.30"]
[Round "9.14"]
[White "Umetsubo, Cesar Hidemitsu"]
[Black "Cunha, Lucas Aguiar"]
[Result "1-0"]
[ECO "E33"]
[WhiteElo "2362"]
[BlackElo "2239"]
[Annotator "RC"]
[PlyCount "53"]
[EventDate "2024.06.15"]
[EventCountry "BRA"]
[SourceTitle "playchess.com"]
[Source "ChessBase"]
[SourceQuality "1"]
[TimeControl "5400+30"]

1. d4 {[%emt 0:00:13]} e6 {[%emt 0:02:38]} 2. c4 {[%emt 0:00:26]} Nf6 {[%emt 0:06:09]} 3. Nc3 {[%emt 0:00:28]} Bb4 {[%emt 0:00:12]} 4. Qc2 {[%emt 0:00:09]} Nc6 {[%emt 0:01:15]} 5. Nf3 {[%emt 0:00:12]} d6 {[%emt 0:00:09]} 6. Bd2 {[%emt 0:00:25]} O-O {[%emt 0:04:31]} 7. a3 {[%emt 0:00:07]} Bxc3 {[%emt 0:00:05]} 8. Bxc3 {[%emt 0:00:07]} Qe7 {[%emt 0:00:45]} 9. e4 {[%emt 0:00:15]} e5 {[%emt 0:00:05]} 10. d5 {[%emt 0:00:12]} Nd8 {[%emt 0:00:18]} 11. Be2 {[%emt 0:02:00]} c5 {[%emt 0:05:57]} 12. O-O {[%emt 0:07:48]} Bg4 {[%emt 0:02:11]} 13. Nh4 {[%emt 0:07:09]} Nxd5 {[%emt 0:04:36]} 14. exd5 {[%emt 0:10:08]} Qxh4 {[%emt 0:00:12]} 15. Bd3 {[%emt 0:24:34]} Bd7 {[%emt 0:05:07]} 16. f4 {[%emt 0:01:14]} exf4 {[%emt 0:12:02]} 17. Rf3 {[%emt 0:08:14]} f5 {[%emt 0:06:18]} 18. Raf1 {[%emt 0:00:58]} g5 {[%emt 0:12:47]} 19. Rh3 {[%emt 0:00:41]} Qg4 {[%emt 0:00:17]} 20. Be2 {[%emt 0:15:18]} f3 {[%emt 0:00:17]} 21. Rfxf3 {[%emt 0:01:34]} Re8 {[%emt 0:10:26]} 22. Rf2 {[%emt 0:04:47]} Qe4 {[%emt 0:00:33]} 23. Bd3 {[%emt 0:00:13]} Qe7 {[%emt 0:00:19]} 24. Bxf5 {[%emt 0:06:17]} Bxf5 {[%emt 0:00:42]} 25. Qxf5 {[%emt 0:00:10]} Rf8 {[%emt 0:00:11]} 26. Bf6 {[%emt 0:00:44]} Qg7 {[%emt 0:00:06]} 27. Bxg7 {[%emt 0:01:05]} 1-0

[Event "8th Brazilian Open SESC Caioba 2024"]
[Site "Caioba"]
[Date "2024.06.30"]
[Round "9.15"]
[White "Martins, Vinicius Tine"]
[Black "Ribeiro, Matheus Mendes Domin"]
[Result "0-1"]
[ECO "D45"]
[WhiteElo "2268"]
[BlackElo "2241"]
[Annotator "RC"]
[PlyCount "132"]
[EventDate "2024.06.15"]
[EventCountry "BRA"]
[SourceTitle "playchess.com"]
[Source "ChessBase"]
[SourceQuality "1"]
[TimeControl "5400+30"]

1. Nf3 {[%emt 0:00:14]} d5 {[%emt 0:11:39]} 2. e3 {[%emt 0:00:40]} Nf6 {[%emt 0:00:41]} 3. c4 {[%emt 0:00:11]} e6 {[%emt 0:00:49]} 4. b3 {[%emt 0:01:12]} Bd6 {[%emt 0:04:20]} 5. Bb2 {[%emt 0:01:10]} O-O {[%emt 0:01:57]} 6. Nc3 {[%emt 0:09:17]} c6 {[%emt 0:01:02]} 7. d4 {[%emt 0:01:20]} Nbd7 {[%emt 0:01:05]} 8. Qc2 {[%emt 0:03:47]} Qe7 {[%emt 0:02:51]} 9. Rd1 {[%emt 0:03:26]} Re8 {[%emt 0:03:24]} 10. Be2 {[%emt 0:08:03]} b6 {[%emt 0:08:37]} 11. O-O {[%emt 0:01:00]} Bb7 {[%emt 0:02:58]} 12. e4 {[%emt 0:03:41]} dxe4 {[%emt 0:02:07]} 13. Nxe4 {[%emt 0:00:09]} Nxe4 {[%emt 0:01:28]} 14. Qxe4 {[%emt 0:00:25]} Nf6 {[%emt 0:00:32]} 15. Qh4 {[%emt 0:00:58]} c5 {[%emt 0:02:53]} 16. dxc5 {[%emt 0:05:40]} Bxc5 {[%emt 0:01:26]} 17. Bd3 {[%emt 0:15:57]} h6 {[%emt 0:10:13]} 18. Ne5 {[%emt 0:12:36]} Rad8 {[%emt 0:02:34]} 19. Rfe1 {[%emt 0:03:40]} Bd6 {[%emt 0:12:40]} 20. Ng4 {[%emt 0:14:22]} Nxg4 {[%emt 0:01:38]} 21. Qxg4 {[%emt 0:00:59]} Qg5 {[%emt 0:00:46]} 22. Qxg5 {[%emt 0:01:57]} hxg5 {[%emt 0:00:13]} 23. h3 {[%emt 0:00:35]} Bb4 {[%emt 0:05:56]} 24. Rf1 {[%emt 0:00:11]} Bc5 {[%emt 0:03:50]} 25. Bc2 {[%emt 0:00:51]} Be7 {[%emt 0:02:15]} 26. Bc1 {[%emt 0:03:06]} Rxd1 {[%emt 0:00:23]} 27. Rxd1 {[%emt 0:00:02]} Rd8 {[%emt 0:00:07]} 28. Rf1 {[%emt 0:01:09]} Bf6 {[%emt 0:01:10]} 29. Be3 {[%emt 0:00:16]} Be7 {[%emt 0:01:12]} 30. Rc1 {[%emt 0:00:49]} f6 {[%emt 0:02:34]} 31. Rb1 {[%emt 0:04:06]} Bc5 {[%emt 0:02:29]} 32. Bxc5 {[%emt 0:00:13]} bxc5 {[%emt 0:00:04]} 33. b4 {[%emt 0:00:05]} cxb4 {[%emt 0:00:53]} 34. Rxb4 {[%emt 0:00:04]} Bc6 {[%emt 0:00:25]} 35. c5 {[%emt 0:01:27]} Kf7 {[%emt 0:00:34]} 36. Bb3 {[%emt 0:01:08]} Ke7 {[%emt 0:01:26]} 37. h4 {[%emt 0:00:49]} gxh4 {[%emt 0:00:33]} 38. Rxh4 {[%emt 0:00:04]} Rc8 {[%emt 0:02:26]} 39. Rb4 {[%emt 0:02:24]} Rc7 {[%emt 0:00:30]} 40. f3 {[%emt 0:00:25]} Bd5 {[%emt 0:00:17]} 41. Rb5 {[%emt 0:00:15]} Kd7 {[%emt 0:02:02]} 42. Kf2 {[%emt 0:00:21]} Bxb3 {[%emt 0:00:47]} 43. axb3 {[%emt 0:00:04]} Kc6 {[%emt 0:00:03]} 44. Ra5 {[%emt 0:00:36]} Rb7 {[%emt 0:00:09]} 45. b4 {[%emt 0:00:28]} Kd5 {[%emt 0:01:13]} 46. Kg3 {[%emt 0:01:36]} Kc4 {[%emt 0:00:29]} 47. c6 {[%emt 0:00:30]} Rc7 {[%emt 0:00:01]} 48. b5 {[%emt 0:00:43]} Kc5 {[%emt 0:00:32]} 49. Kg4 {[%emt 0:00:32]} Kb6 {[%emt 0:00:35]} 50. Ra2 {[%emt 0:00:23]} Kxb5 {[%emt 0:00:40]} 51. Kh5 {[%emt 0:00:14]} a5 {[%emt 0:00:50]} 52. Kg6 {[%emt 0:00:16]} a4 {[%emt 0:00:22]} 53. g4 {[%emt 0:00:28]} Kb4 {[%emt 0:00:28]} 54. Rb2+ {[%emt 0:00:17]} Kc3 {[%emt 0:00:37]} 55. Rb7 {[%emt 0:00:15]} Rxc6 {[%emt 0:00:05]} 56. Rxg7 {[%emt 0:01:55]} e5 {[%emt 0:01:46]} 57. Ra7 {[%emt 0:00:26]} Kb3 {[%emt 0:00:10]} 58. Rb7+ {[%emt 0:00:19]} Ka2 {[%emt 0:00:26]} 59. Rb5 {[%emt 0:00:57]} a3 {[%emt 0:00:51]} 60. Kf5 {[%emt 0:00:42]} Ka1 {[%emt 0:01:25]} 61. g5 {[%emt 0:00:25]} fxg5 {[%emt 0:00:27]} 62. Rxe5 {[%emt 0:00:09]} Rc3 {[%emt 0:01:46]} 63. Kg4 {[%emt 0:00:03]} Kb2 {[%emt 0:00:39]} 64. Re2+ {[%emt 0:01:07]} Kb3 {[%emt 0:00:26]} 65. Re5 {[%emt 0:00:35]} a2 {[%emt 0:00:14]} 66. Rb5+ {[%emt 0:00:46]} Kc2 {[%emt 0:03:30]} 0-1